bitfinex/quotes_ETHUSD_20251107
["timestamp","ask_amount","ask_price","bid_price","bid_amount"]
[1762539955650,2.92750352,3414.0,3413.9,0.001]
[1762539955872,2.46850352,3414.0,3413.9,0.001]
[1762539956038,5.0579314,3414.0,3413.9,0.001]
[1762539957175,3.7982194,3414.0,3413.9,0.001]
[1762539957753,3.3392194,3414.0,3413.9,0.001]
[1762539957952,0.405504,3414.0,3413.9,0.001]
[1762539958283,3.4247194,3414.0,3413.9,0.001]
[1762539960075,0.495604,3414.0,3413.9,0.001]
[1762539960285,0.405504,3414.0,3413.9,0.001]
[1762539961089,3.33487682,3413.7,3413.6,0.001]
[1762539961378,6.11315685,3413.7,3413.6,0.001]
[1762539963751,6.11315685,3413.7,3413.1,0.006]
[1762539963752,2.92980194,3413.2,3413.1,0.006]
[1762539964091,3.79510594,3413.2,3413.1,0.006]
[1762539964297,3.88440594,3413.2,3413.1,0.006]
[1762539964496,4.56581748,3413.2,3413.1,0.006]
[1762539964707,5.82552948,3413.2,3413.1,0.006]
[1762539965471,3.33573519,3412.7,3412.6,0.001]
[1762539965674,4.65534719,3412.7,3412.6,0.001]
[1762539965872,2.2004868,3412.7,3412.6,0.001]
[1762539966079,0.405504,3412.7,3412.6,0.001]
[1762539966662,0.950604,3412.7,3412.6,0.001]
[1762539966870,3.88083519,3412.7,3412.6,0.001]
[1762539967263,0.469604,3412.7,3412.6,0.001]
[1762539967596,3.40403519,3412.7,3412.6,0.001]
[1762539967956,4.03744537,3412.7,3412.6,0.001]
[1762539968163,3.3359928,3412.4,3412.3,0.001]
[1762539968362,0.410304,3412.4,3412.3,0.001]
[1762539968581,3.3407928,3412.4,3412.3,0.001]
[1762539968783,3.8293928,3412.4,3412.3,0.001]
[1762539968984,1.14961648,3412.4,3412.3,0.001]
[1762539969184,0.410304,3412.4,3412.3,0.001]
[1762539969401,0.6544,3413.8,3412.3,0.99560574]
[1762539969763,0.4886,3413.7,3412.4,2.93042786]
[1762539970028,0.405504,3413.1,3412.4,2.93042641]
[1762539970241,3.3359928,3412.4,3412.3,0.001]
[1762539970441,0.76179328,3412.4,3412.3,0.001]
[1762539970740,3.3359928,3412.4,3412.3,0.001]
[1762539970911,0.405504,3412.4,3412.3,0.001]
[1762539971111,3.3359928,3412.4,3412.3,0.001]
[1762539971937,0.405504,3412.4,3412.3,0.001]
[1762539972241,0.405504,3412.4,3412.3,0.9663]
[1762539972419,0.405504,3412.4,3412.3,0.001]
[1762539972594,4.50771486,3412.4,3412.3,0.001]
[1762539973098,1.03212606,3412.4,3412.3,0.001]
[1762539973312,0.405504,3412.4,3412.3,0.001]
[1762539973631,3.3359928,3412.4,3412.3,0.001]
[1762539974195,0.405504,3412.4,3412.3,0.001]
[1762539974694,0.405504,3412.4,3412.3,0.492]
[1762539975392,0.405504,3412.4,3412.3,0.9663]
[1762539975589,2.92998795,3413.0,3412.4,2.9304059]
[1762539975590,1.259712,3413.0,3412.4,2.9304059]
[1762539975822,2.92990931,3413.1,3412.4,0.4743]
[1762539976031,2.92990931,3413.1,3412.5,0.4743]
[1762539976219,0.405504,3413.0,3412.5,3.40469872]
[1762539976627,0.405504,3413.0,3412.5,2.93039872]
[1762539977326,0.405504,3412.9,3412.4,2.93045782]
[1762539977836,0.405504,3412.5,3412.3,0.001]
[1762539978144,0.405504,3412.4,3412.3,0.001]
[1762539978349,3.3359928,3412.4,3412.3,0.001]
[1762539979033,0.5081601,3412.9,3412.3,0.492]
[1762539979034,1.665216,3412.7,3412.3,0.492]
[1762539979250,1.665216,3412.7,3412.3,0.9663]
[1762539979251,3.33578768,3412.7,3412.3,0.9663]
[1762539979543,1.665216,3412.5,3412.3,0.9663]
[1762539979946,2.93032641,3412.6,3412.3,0.492]
[1762539979947,1.665216,3412.6,3412.3,0.492]
[1762539980143,0.405504,3412.6,3412.3,0.492]
[1762539980445,1.665216,3412.5,3412.3,0.001]
[1762539981943,0.405504,3413.1,3412.4,0.9653]
[1762539982105,0.4864,3413.2,3412.5,3.42133621]
[1762539982323,0.405504,3413.1,3412.6,2.93031706]
[1762539982521,0.405504,3413.1,3412.5,0.491]
[1762539982756,0.4864,3413.2,3413.1,3.61628778]
[1762539982910,0.4864,3413.2,3413.1,4.27091475]
[1762539983114,0.002,3413.7,3413.3,2.92971611]
[1762539983351,0.002,3413.7,3413.6,2.92945863]
[1762539983648,0.002,3413.7,3413.6,3.42045863]
[1762539983945,0.002,3413.7,3413.6,3.92405321]
[1762539984146,0.002,3413.7,3413.6,4.90219734]
[1762539984668,0.002,3414.1,3414.0,2.9291154]
[1762539984863,0.002,3414.1,3414.0,3.92370655]
[1762539985361,0.002,3414.1,3414.0,3.8443954]
[1762539985675,0.002,3414.1,3413.6,0.97814413]
[1762539985964,0.002,3414.1,3413.7,2.92931713]
[1762539986386,0.002,3414.1,3413.6,3.40375048]
[1762539986565,0.002,3414.1,3413.7,2.92932587]
[1762539987070,0.002,3414.1,3413.6,0.4743]
[1762539987374,0.002,3414.1,3413.9,2.92919294]
[1762539987661,0.002,3414.1,3413.8,2.92925643]
[1762539987828,0.002,3414.1,3413.1,3.12523312]
[1762539988029,0.002,3414.1,3413.7,2.92936324]
[1762539988517,0.002,3414.1,3413.3,3.40399531]
[1762539988628,0.405504,3413.8,3413.1,0.1954]
[1762539988832,0.405504,3413.7,3413.1,3.12528672]
[1762539989047,0.405504,3413.8,3413.4,2.92956561]
[1762539989444,0.405504,3413.8,3413.1,0.1954]
[1762539989881,0.405504,3414.0,3413.4,2.92963028]
[1762539990040,0.002,3414.1,3413.4,2.92961251]
[1762539990391,1.667216,3414.1,3413.4,2.92961251]
[1762539990741,1.667216,3414.1,3413.5,2.92953381]
[1762539991065,0.002,3414.1,3413.5,2.92953381]
[1762539991384,0.405504,3414.0,3413.3,2.92964204]
[1762539991554,1.667216,3414.1,3413.4,2.92962528]
[1762539991758,0.407504,3414.1,3413.1,0.6697]
[1762539991950,1.667216,3414.1,3413.5,2.92949312]
[1762539992285,0.898304,3414.1,3413.1,0.1954]
[1762539992487,0.405504,3413.9,3413.2,2.92974429]
[1762539992694,3.33475475,3413.9,3413.2,2.92974429]
[1762539992890,0.405504,3413.7,3413.2,2.92974429]
[1762539993253,0.405504,3413.7,3413.3,2.92967666]
[1762539993482,0.405504,3413.5,3413.2,2.92979403]
[1762539993685,0.405504,3413.7,3412.3,0.001]
[1762539993686,0.405504,3413.1,3412.3,0.001]
[1762539993961,0.405504,3412.9,3412.3,0.001]
[1762539994185,0.1507,3413.0,3412.3,0.001]
[1762539994186,0.846404,3412.4,3412.3,0.001]
[1762539994483,3.33616457,3412.2,3412.1,0.005]
[1762539994681,3.98056457,3412.2,3412.1,0.005]
[1762539995257,4.69135991,3412.2,3412.1,0.005]
[1762539996174,4.69135991,3412.2,3411.9,0.001]
[1762539996175,2.93083235,3412.0,3411.9,0.001]
[1762539996375,0.843504,3412.0,3411.9,0.001]
[1762539997163,0.405504,3412.0,3411.9,0.001]
[1762539997367,0.405504,3412.0,3411.9,0.4781]
[1762539997788,0.405504,3412.0,3411.9,0.001]
[1762539999194,0.4908,3412.6,3412.0,2.93074749]
[1762539999195,1.259712,3412.6,3412.0,2.93074749]
[1762539999398,0.6877,3412.9,3411.9,3.90701797]
[1762539999571,0.405504,3412.8,3412.2,2.93065944]
[1762539999776,2.92994701,3413.1,3412.4,2.9304888]
[1762540000008,1.259712,3413.0,3412.4,2.9304888]
[1762540000360,0.405504,3412.9,3412.3,2.93054503]
[1762540000562,0.405504,3412.9,3412.1,3.12613607]
[1762540000563,0.405504,3412.9,3412.4,2.93041886]
[1762540000798,1.259712,3413.0,3412.3,2.93055611]
[1762540000799,4.59521062,3413.0,3412.3,2.93055611]
[1762540001204,4.59521062,3413.0,3412.1,3.12613465]
[1762540001205,1.665216,3413.0,3412.1,0.1954]
[1762540001515,1.665216,3413.0,3412.6,2.93023789]
[1762540001668,1.665216,3413.0,3412.5,2.93038024]
[1762540001863,1.665216,3413.0,3412.2,0.0293066]
[1762540001864,1.665216,3413.0,3412.4,2.95976614]
[1762540002491,1.665216,3413.0,3412.5,2.93040001]
[1762540003061,0.4575,3412.6,3412.2,2.93066057]
[1762540003292,0.405504,3412.8,3412.3,2.93051481]
[1762540003682,0.1969,3413.3,3412.7,0.49]
[1762540003908,1.442112,3413.5,3412.9,2.93004981]
[1762540004128,1.442112,3413.5,3413.0,2.92997212]
[1762540004278,0.405504,3412.6,3412.5,0.4988]
[1762540004481,0.6458,3413.5,3412.5,3.42920293]
[1762540004687,0.005,3413.9,3413.4,0.6309]
[1762540004910,0.005,3413.9,3413.8,2.92928701]
[1762540005125,0.005,3413.9,3413.8,3.41928701]
[1762540005486,0.005,3413.9,3413.8,10.58565827]
[1762540005487,1e-08,3413.9,3413.8,10.58565827]
[1762540005723,0.002,3414.5,3414.0,4.1888274]
[1762540006025,0.002,3414.5,3414.0,4.6788274]
[1762540006199,0.002,3414.5,3414.3,4.18857003]
[1762540006519,0.002,3414.5,3414.3,4.67857003]
[1762540006697,0.407504,3414.4,3414.3,5.17737003]
[1762540006897,0.002,3414.4,3414.3,5.78303473]
[1762540007284,0.002,3414.4,3414.3,12.45060599]
[1762540007491,0.407504,3414.4,3414.3,12.45060599]
[1762540007919,0.002,3414.4,3414.3,12.45060599]
[1762540008287,0.002,3414.4,3414.3,5.78303473]
[1762540008619,0.407504,3414.4,3414.3,5.78303473]
[1762540009200,1e-08,3415.6,3414.3,5.78303473]
[1762540009201,1e-08,3415.6,3414.4,8.88506053]
[1762540009402,1e-08,3415.6,3415.5,3.41782901]
[1762540009726,1e-08,3415.6,3415.5,4.67754101]
[1762540009926,1e-08,3415.6,3415.5,5.17634101]
[1762540011092,1e-08,3415.6,3415.5,5.2056193]
[1762540011294,1e-08,3415.6,3415.5,5.50691088]
[1762540013539,1e-08,3415.6,3415.5,5.17634101]
[1762540014100,1e-08,3415.6,3415.5,4.67754101]
[1762540014608,1e-08,3415.6,3415.5,2.92782901]
[1762540014874,0.55110401,3415.6,3415.5,2.92782901]
[1762540015205,0.55110401,3415.6,3415.5,3.41782901]
[1762540015524,0.40550401,3415.6,3415.5,4.85286358]
[1762540017394,0.40550401,3415.6,3415.5,4.99846358]
[1762540017599,0.40550401,3415.6,3415.5,6.25817558]
[1762540020027,0.008,3415.9,3415.8,2.92757187]
[1762540020233,0.008,3415.9,3415.8,3.41757187]
[1762540020535,0.1456,3416.1,3415.8,3.41757187]
[1762540020536,1e-08,3416.5,3416.4,3.51475772]
[1762540020848,0.005,3417.9,3416.4,3.51475772]
[1762540020849,0.005,3417.9,3417.7,2.92594434]
[1762540021000,0.005,3417.9,3417.7,3.60594434]
[1762540021330,0.005,3417.9,3417.7,4.10474434]
[1762540021837,0.005,3417.9,3417.2,0.4988]
[1762540022138,0.005,3417.9,3416.4,0.0977]
[1762540022139,0.1874,3417.9,3417.0,0.19]
[1762540022341,0.408504,3417.8,3417.5,2.92604293]
[1762540022546,0.408504,3417.8,3417.0,0.19]
[1762540022547,0.405504,3417.6,3416.4,0.0977]
[1762540022841,0.886904,3417.6,3416.0,0.1926]
[1762540023015,0.405504,3416.4,3415.2,0.9289]
[1762540023202,0.405504,3416.4,3416.1,2.92729269]
[1762540023599,0.405504,3416.4,3415.9,2.92740162]
[1762540023898,0.405504,3416.4,3416.1,2.92729651]
[1762540024099,0.405504,3416.7,3415.5,1.259712]
[1762540024299,0.405504,3416.7,3416.6,2.92688637]
[1762540024532,1.447112,3417.9,3416.6,0.51116886]
[1762540024533,3.11318967,3417.9,3416.6,0.51116886]
[1762540024734,0.4844,3417.8,3416.7,0.029268]
[1762540024907,0.003,3417.8,3416.7,2.92680071]
[1762540025113,0.003,3417.8,3416.6,0.4655]
[1762540025324,0.003,3417.8,3417.3,2.92627977]
[1762540025325,0.4844,3417.8,3417.3,2.92627977]
[1762540025508,0.405504,3417.7,3416.7,2.92680071]
[1762540025709,3.33145685,3417.7,3417.0,2.92647436]
[1762540025918,0.408504,3417.8,3416.8,2.92671505]
[1762540026214,0.002,3417.6,3417.1,2.926406]
[1762540026415,0.405504,3417.4,3416.9,2.9266246]
[1762540026598,0.405504,3417.4,3417.2,2.92636975]
[1762540026798,0.002,3417.6,3416.6,0.47011437]
[1762540027003,0.407504,3417.6,3416.5,0.0488]
[1762540027238,0.405504,3417.2,3416.1,0.1926]
[1762540027437,3.33187831,3417.2,3416.1,0.1926]
[1762540027612,0.405504,3417.0,3416.6,2.92688291]
[1762540027815,0.405504,3417.0,3416.8,2.92671433]
[1762540028003,0.405504,3416.8,3416.6,2.92685494]
[1762540028528,0.405504,3416.8,3416.5,2.92694749]
[1762540028835,0.405504,3416.8,3416.6,2.926869]
[1762540029047,0.405504,3416.8,3416.5,2.92693839]
[1762540029428,0.405504,3416.8,3415.3,0.001]
[1762540029429,0.405504,3416.5,3415.3,0.001]
[1762540029645,0.4814,3416.7,3415.3,0.001]
[1762540029646,2.92731651,3416.1,3415.3,0.001]
[1762540029807,0.405504,3415.4,3415.3,0.001]
[1762540030227,1.355304,3415.4,3415.3,0.001]
[1762540030473,0.405504,3415.4,3415.3,2.92900046]
[1762540030771,0.405504,3415.4,3415.3,3.52986024]
[1762540030933,0.405504,3415.4,3415.3,4.01176024]
[1762540031136,0.405504,3415.4,3415.3,3.52986024]
[1762540031727,0.405504,3415.4,3415.3,2.92900046]
[1762540031954,0.405504,3415.4,3415.3,3.41090046]
[1762540032153,0.405504,3415.4,3415.3,4.02200046]
[1762540032743,0.1456,3415.8,3415.7,2.92765758]
[1762540032956,0.405504,3415.8,3415.7,3.40955758]
[1762540033140,0.405504,3415.8,3415.7,4.55533881]
[1762540033336,0.4844,3417.8,3415.8,0.4655]
[1762540033567,0.1456,3417.0,3416.9,2.9266294]
[1762540033936,0.1456,3417.0,3416.7,2.92672689]
[1762540033937,0.1456,3417.0,3416.8,2.926714]
[1762540034136,0.1456,3417.0,3416.9,2.9266294]
[1762540035375,0.551104,3417.0,3416.9,2.9266294]
[1762540035946,0.551104,3417.0,3416.8,2.92671505]
[1762540035947,0.405504,3416.9,3416.8,2.92671505]
[1762540036150,0.1456,3417.0,3416.8,2.92671505]
[1762540036377,0.1456,3417.0,3416.9,2.9266294]
[1762540036582,0.1456,3417.0,3416.1,0.3382]
[1762540036583,0.405504,3417.3,3417.2,2.92637246]
[1762540036868,0.405504,3417.3,3417.1,2.92644308]
[1762540037242,0.405504,3417.0,3416.4,0.6111]
[1762540037443,0.405504,3417.0,3416.9,2.9266294]
[1762540037977,3.33173914,3417.4,3416.7,2.92673727]
[1762540038173,3.33173914,3417.4,3416.2,0.1456]
[1762540038174,0.1456,3416.8,3416.2,0.1456]
[1762540038380,0.1456,3416.3,3416.2,2.92722908]
[1762540039378,0.4814,3416.7,3416.4,2.92705319]
[1762540039583,0.873904,3416.5,3416.4,2.92705319]
[1762540040294,0.405504,3416.4,3416.3,2.92711511]
[1762540040586,0.405504,3416.4,3415.8,2.92757187]
[1762540040587,0.886904,3416.4,3415.3,2.92893829]
[1762540040745,0.886904,3416.4,3415.7,2.92761348]
[1762540040950,0.886904,3416.4,3416.1,2.92724225]
[1762540041228,0.405504,3416.2,3415.8,2.92756229]
[1762540041409,0.405504,3416.2,3415.3,0.001]
[1762540041699,0.405504,3415.4,3415.3,2.92897794]
[1762540042475,0.873904,3415.4,3415.3,2.92900046]
[1762540043286,0.873904,3415.4,3415.3,0.001]
[1762540043287,1.355304,3415.4,3415.3,0.001]
[1762540043650,1.355304,3415.4,3415.3,2.92900046]
[1762540044090,1.355304,3415.4,3415.3,0.001]
[1762540044489,1.78361157,3415.4,3415.3,0.001]
[1762540044851,4.7115263,3415.4,3415.3,0.001]
[1762540045625,1.78361157,3415.4,3415.3,0.001]
[1762540045937,4.28321873,3415.4,3415.3,0.001]
[1762540046615,1.355304,3415.4,3415.3,0.001]
[1762540046824,4.28321873,3415.4,3415.3,0.001]
[1762540047288,1.355304,3415.4,3415.3,0.001]
[1762540047890,4.28321873,3415.4,3415.3,0.001]
[1762540048401,2.20237304,3415.4,3415.3,0.001]
[1762540048645,1.355304,3415.4,3415.3,0.001]
[1762540050637,4.3866844,3416.1,3415.4,2.92785468]
[1762540050638,0.4814,3416.0,3415.4,2.92785468]
[1762540050854,0.4684,3415.4,3415.3,2.92900046]
[1762540051148,0.4814,3416.0,3415.6,2.9277386]
[1762540051307,0.4814,3416.0,3415.5,2.92776934]
[1762540051308,0.1456,3415.6,3415.5,2.92776934]
[1762540051638,0.4684,3415.6,3415.3,0.001]
[1762540051813,0.873904,3415.6,3415.5,2.92782901]
[1762540052012,0.405504,3415.6,3415.5,2.92782901]
[1762540052413,0.405504,3415.6,3415.5,3.51351121]
[1762540052615,2.9264164,3417.2,3415.9,2.92743413]
[1762540052815,6.48,3417.3,3415.8,2.92757187]
[1762540052816,0.1456,3415.9,3415.8,2.92757187]
[1762540053014,6.48,3417.3,3416.4,2.92699756]
[1762540053015,0.4919,3417.1,3416.4,2.92699756]
[1762540053228,3.12623608,3416.9,3416.3,2.92711141]
[1762540053434,3.12623608,3416.9,3415.8,0.4756]
[1762540053435,0.405504,3416.8,3416.4,2.92703724]
[1762540053617,0.405504,3416.8,3415.3,3.07453144]
[1762540053618,0.551104,3416.4,3416.3,2.92711376]
[1762540053945,0.1456,3416.3,3415.6,2.92767652]
[1762540054240,0.405504,3415.6,3415.5,2.92782901]
[1762540054628,0.405504,3415.6,3415.3,0.001]
[1762540054941,0.405504,3415.6,3415.4,2.92785436]
[1762540055146,0.405504,3415.6,3415.5,2.92782901]
[1762540055455,0.405504,3415.6,3415.3,0.03028]
[1762540055651,0.405504,3415.6,3415.5,2.92782901]
[1762540056150,0.405504,3415.6,3415.4,2.92783611]
[1762540056455,0.1976,3416.0,3415.4,0.60386941]
[1762540056658,0.405504,3415.9,3415.8,2.92749432]
[1762540056821,0.4919,3416.7,3415.5,2.92782901]
[1762540057023,3.41873356,3416.7,3416.0,2.92734204]
[1762540057226,0.405504,3416.6,3416.1,2.9272498]
[1762540057412,0.897404,3416.6,3415.5,2.92782901]
[1762540057616,0.897404,3416.6,3416.1,2.92731261]
[1762540058019,0.405504,3416.4,3416.1,2.92731261]
[1762540058216,0.405504,3416.4,3415.6,0.40036984]
[1762540058415,0.405504,3416.5,3416.1,2.92724787]
[1762540058841,0.405504,3416.3,3416.0,2.92736732]
[1762540059037,0.405504,3416.3,3416.1,2.92730473]
[1762540059248,0.405504,3416.3,3416.2,2.92722908]
[1762540059553,0.405504,3416.3,3415.6,0.40036984]
[1762540059725,0.405504,3416.3,3415.3,3.39994648]
[1762540059916,0.405504,3416.3,3416.0,2.92739231]
[1762540060113,0.405504,3416.3,3416.1,2.92729144]
[1762540060316,0.405504,3416.3,3416.2,2.92722908]
[1762540060526,0.405504,3416.3,3415.3,0.472]
[1762540060713,0.405504,3416.3,3416.0,2.92734379]
[1762540060928,0.405504,3416.3,3415.9,2.92740321]
[1762540061354,0.405504,3416.8,3415.4,0.35526687]
[1762540061554,0.405504,3415.9,3415.3,0.001]
[1762540061717,0.4812,3416.2,3415.9,2.92742664]
[1762540061718,0.405504,3416.1,3415.9,2.92742664]
[1762540061922,0.405504,3416.1,3415.3,2.92896334]
[1762540061923,0.405504,3416.1,3415.8,2.92755225]
[1762540062119,0.405504,3416.1,3415.3,0.001]
[1762540062120,0.405504,3416.0,3415.3,0.001]
[1762540062356,0.888604,3415.4,3415.3,2.92893559]
[1762540062658,0.405504,3416.2,3415.8,2.92757187]
[1762540062950,0.405504,3416.8,3416.1,2.92731477]
[1762540063112,0.405504,3416.8,3415.5,2.92782901]
[1762540063315,0.405504,3416.6,3415.9,2.92748336]
[1762540063517,0.405504,3416.4,3415.9,2.92748336]
[1762540063821,0.405504,3416.4,3416.1,2.92724491]
[1762540064223,0.405504,3416.0,3415.5,0.001]
[1762540064418,0.405504,3415.8,3415.7,2.92764472]
[1762540064758,0.885104,3415.6,3415.5,0.001]
[1762540065221,0.885104,3415.6,3415.5,2.92882901]
[1762540065422,1.366304,3415.6,3415.5,0.001]
[1762540065823,0.885104,3415.6,3415.5,2.92882901]
[1762540066450,0.885104,3415.6,3415.5,0.001]
[1762540066770,1.366304,3415.6,3415.5,0.001]
[1762540067066,1.5210244,3415.6,3415.5,0.001]
[1762540068078,4.44876769,3415.6,3415.5,0.001]
[1762540068238,0.002,3416.3,3415.5,0.001]
[1762540068239,0.003,3417.8,3417.5,2.92611558]
[1762540068563,0.003,3417.8,3417.5,0.29261156]
[1762540068870,0.003,3417.8,3417.5,2.92611558]
[1762540069154,0.003,3417.8,3416.8,0.6878]
[1762540069355,0.5093,3417.6,3416.3,2.9271434]
[1762540069554,0.5093,3417.6,3417.4,2.9261982]
[1762540069763,0.5093,3417.6,3416.5,2.92693494]
[1762540070088,0.5093,3417.6,3417.1,2.92638843]
[1762540070301,0.34381677,3417.5,3417.2,2.92636755]
[1762540070587,0.405504,3417.4,3417.0,2.92648208]
[1762540070789,0.405504,3417.4,3416.3,0.4956]
[1762540070790,0.405504,3417.4,3416.9,2.92654953]
[1762540070996,0.34381677,3417.5,3416.3,0.4956]
[1762540071177,0.4787,3417.6,3417.1,2.92639731]
[1762540071345,0.405504,3417.5,3417.0,2.92646701]
[1762540071681,0.405504,3417.4,3416.3,0.4956]
[1762540071978,0.002,3417.6,3417.5,2.92611558]
[1762540072377,0.002,3417.6,3417.5,3.89571558]
[1762540072677,0.002,3417.6,3417.5,4.57790849]
[1762540074167,0.002,3417.6,3417.5,2.92611558]
[1762540074477,0.002,3417.6,3417.5,3.92497673]
[1762540074666,0.002,3417.6,3417.5,4.04131558]
[1762540075790,0.005,3417.9,3417.8,9.57913741]
[1762540075992,0.005,3417.9,3417.8,10.05313741]
[1762540076149,0.005,3417.9,3417.8,10.69433741]
[1762540079086,0.1456,3418.4,3418.3,2.92543076]
[1762540079252,0.005,3418.9,3418.8,2.92500292]
[1762540079443,0.005,3418.9,3418.8,3.89460292]
[1762540079779,0.005,3418.9,3418.8,2.92500292]
[1762540079984,0.005,3418.9,3418.3,0.1922]
[1762540080190,0.005,3418.9,3418.8,3.39900292]
[1762540080374,0.005,3418.9,3418.8,3.89460292]
[1762540081150,0.005,3418.9,3418.8,2.92500292]
[1762540081355,0.005,3418.9,3418.3,10.26647063]
[1762540081356,0.1859,3418.9,3418.7,2.92503744]
[1762540081589,0.1859,3418.9,3418.8,2.92500292]
[1762540082155,0.405504,3418.8,3418.0,0.6878]
[1762540082493,0.405504,3418.8,3417.9,2.92571219]
[1762540082494,0.0136,3418.7,3417.9,2.92569798]
[1762540082718,0.6541,3418.9,3417.6,2.92601323]
[1762540082719,0.877604,3418.0,3417.6,2.92601323]
[1762540083017,3.11084639,3418.9,3417.6,2.92601323]
[1762540083018,0.1504,3421.1,3419.8,2.92414761]
[1762540083200,0.1504,3421.1,3419.8,3.85674761]
[1762540084307,0.1504,3421.1,3419.8,2.92414761]
[1762540084497,0.405504,3420.6,3419.8,2.92414761]
[1762540085505,0.006,3422.6,3420.8,0.4566]
[1762540085711,0.006,3422.6,3421.2,1.441212]
[1762540085882,0.006,3422.6,3422.5,2.92184075]
[1762540086088,0.006,3422.6,3421.3,0.476]
[1762540086410,1e-08,3422.6,3422.5,4.36305275]
[1762540086722,6.70247868,3424.5,3422.5,0.1815]
[1762540086904,0.0542,3423.6,3421.6,0.476]
[1762540087104,0.0542,3423.6,3422.3,2.92198938]
[1762540087105,1.259712,3423.5,3422.3,2.92198938]
[1762540087309,1.259712,3423.5,3422.1,0.1815]
[1762540087522,2.92166121,3422.8,3420.8,0.1815]
[1762540087825,0.95749399,3422.7,3420.8,0.1815]
[1762540088141,0.405504,3422.3,3420.6,0.1815]
[1762540088421,1.01169399,3422.7,3420.6,0.1815]
[1762540088422,1.665216,3422.6,3421.7,2.92250536]
[1762540088620,0.459704,3422.6,3420.9,0.476]
[1762540088917,0.405504,3422.4,3421.1,0.005]
[1762540089120,2.92147593,3423.0,3421.1,0.005]
[1762540089121,0.005,3423.9,3422.6,2.92175539]
[1762540089321,0.005,3423.9,3422.5,0.1815]
[1762540089322,0.005,3423.9,3423.8,2.92073135]
[1762540089624,0.005,3423.9,3422.8,2.92158466]
[1762540089625,0.1456,3423.8,3423.2,0.1456]
[1762540089797,0.005,3423.9,3423.1,0.1815]
[1762540090000,0.005,3423.9,3423.6,2.92090197]
[1762540090001,0.1456,3423.7,3423.6,2.92090197]
[1762540090529,0.1456,3423.7,3423.5,2.92098384]
[1762540090688,0.1456,3423.7,3423.1,0.1815]
[1762540090689,0.005,3423.9,3423.1,0.1815]
[1762540091021,0.005,3424.9,3423.2,1.776]
[1762540091220,0.005,3424.9,3424.4,0.1815]
[1762540091420,0.1456,3424.6,3424.4,2.92019898]
[1762540091585,0.1456,3424.6,3424.0,0.1456]
[1762540092019,0.005,3424.9,3423.4,0.476]
[1762540092205,0.1456,3424.2,3423.6,0.1456]
[1762540092528,0.1456,3424.2,3424.1,2.92047545]
[1762540093723,0.1456,3424.2,3423.6,0.1456]
[1762540094030,0.1456,3423.6,3422.8,0.6216]
[1762540094226,0.405504,3424.3,3422.6,1.259712]
[1762540094227,0.405504,3424.3,3424.1,2.92040528]
[1762540094413,0.005,3424.9,3424.1,2.92040528]
[1762540094414,0.405504,3424.8,3424.1,2.92040528]
[1762540094614,0.405504,3424.8,3423.3,0.476]
[1762540094615,0.38723099,3424.7,3423.3,0.476]
[1762540094926,0.405504,3424.5,3423.3,0.476]
[1762540095105,0.005,3424.9,3423.2,3.24832808]
[1762540095106,0.405504,3424.2,3423.8,2.92066842]
[1762540095308,0.405504,3424.2,3423.9,2.92064604]
[1762540095530,0.1456,3423.8,3423.2,0.3271]
[1762540095693,0.1456,3423.8,3423.7,2.92081666]
[1762540095888,0.1456,3423.7,3423.3,2.92115794]
[1762540096093,0.005,3424.9,3423.2,0.1815]
[1762540096094,0.0542,3424.7,3423.2,0.1815]
[1762540096294,0.1456,3423.6,3423.5,2.92098729]
[1762540096826,0.1456,3423.6,3423.0,0.1456]
[1762540096827,0.1456,3423.6,3422.5,0.1815]
[1762540097029,0.1456,3423.2,3422.6,0.1456]
[1762540097202,0.1456,3423.2,3423.1,2.92132862]
[1762540097397,0.1456,3423.2,3422.6,0.1456]
[1762540097598,0.1456,3423.2,3423.1,2.92132862]
[1762540098129,0.1456,3423.2,3422.6,0.1456]
[1762540098333,0.1456,3423.2,3422.7,2.92166092]
[1762540098493,2.92081666,3423.7,3422.5,0.1815]
[1762540098695,0.5895668,3423.6,3423.2,2.92120664]
[1762540098900,0.0542,3423.8,3423.2,2.92120664]
[1762540099215,0.1456,3423.2,3422.5,0.1815]
[1762540099417,0.1456,3423.0,3422.5,0.1815]
[1762540099594,0.1456,3422.8,3422.7,2.92167002]
[1762540100197,2.92040031,3424.2,3422.9,2.9214566]
[1762540100198,1.259712,3424.2,3422.9,2.9214566]
[1762540100417,0.42342839,3424.1,3423.0,0.50521413]
[1762540100611,0.1456,3423.8,3423.7,2.92081666]
[1762540100899,0.0542,3424.8,3422.5,0.16216]
[1762540101097,0.002,3423.2,3422.5,3.08392547]
[1762540101298,0.002,3423.2,3422.5,0.001]
[1762540101539,0.002,3423.2,3422.5,2.92276453]
[1762540101739,3.2136631,3423.1,3422.5,0.001]
[1762540101907,0.0691,3422.6,3422.5,0.001]
[1762540102105,0.0691,3423.0,3422.5,0.001]
[1762540102637,2.92175539,3422.6,3422.5,0.001]
[1762540103035,2.99625539,3422.6,3422.5,0.001]
[1762540103240,3.5880394,3422.6,3422.5,0.001]
[1762540103813,2.92209689,3422.2,3422.1,0.005]
[1762540104226,2.99659689,3422.2,3422.1,0.005]
[1762540104403,4.25630889,3422.2,3422.1,0.005]
[1762540108724,1.334212,3422.2,3422.1,0.005]
[1762540109068,1.259712,3422.6,3422.1,0.005]
[1762540109226,1.259712,3422.4,3422.1,0.005]
[1762540109427,0.0745,3422.9,3422.1,0.005]
[1762540109628,0.0691,3423.0,3422.1,0.1865]
[1762540109829,2.92161227,3422.8,3422.1,0.1865]
[1762540110030,0.002,3423.2,3423.1,2.92132862]
[1762540110231,0.002,3423.2,3423.1,3.10282862]